fUSD/lending_fUSD_20260521
["ID","MTS","AMOUNT","RATE_DAILY","PERIOD"]
[422732606,1779339032000,-418.0,0.0001437,2]
[422732610,1779339032000,-206.24,0.00014612,2]
[422732614,1779339032000,-431.11676586,0.000147,2]
[422732612,1779339032000,-720.423,0.00014682,2]
[422732608,1779339032000,-1977.87375416,0.000145,2]
[422732616,1779339032000,-169.568643,0.000147,2]
[422732624,1779339032000,-152.0,0.00014752,4]
[422732615,1779339032000,-218.584578,0.000147,2]
[422732617,1779339032000,-271.0,0.00014702,2]
[422732611,1779339032000,-1977.87375416,0.00014634,2]
[422732607,1779339032000,-166.66,0.00014384,2]
[422732618,1779339032000,-517.79819165,0.0001472,2]
[422732621,1779339032000,-972.22222,0.0001473,2]
[422732629,1779339032000,-517.79819165,0.00014788,2]
[422732620,1779339032000,-972.22222,0.0001473,2]
[422732619,1779339032000,-500.0,0.00014726,2]
[422732622,1779339032000,-517.79819165,0.00014743,2]
[422732623,1779339032000,-972.22222,0.0001475,2]
[422732613,1779339032000,-517.79819167,0.00014698,2]
[422732650,1779339037000,-903.93718342,0.00013952,2]
[422732651,1779339037000,-12545.81298068,0.00013952,2]
[422732652,1779339037000,-3001.044908,0.00014758,2]
[422732653,1779339037000,-504.16042614,0.00014878,2]
[422732654,1779339037000,-972.22222,0.00014878,2]
[422732655,1779339037000,-450.91438764,0.00014882,2]
[422732660,1779339037000,-500.0,0.00014882,2]
[422732658,1779339037000,-497.67339442,0.00014882,2]
[422732663,1779339037000,-2101.08403083,0.00014891,3]
[422732656,1779339037000,-500.0,0.00014882,2]
[422732662,1779339037000,-500.0,0.0001489,2]
[422732664,1779339037000,-14078.95110786,0.00014891,3]
[422732657,1779339037000,-670.02573378,0.00014882,2]
[422732659,1779339037000,-1583.5208718,0.00014882,2]
[422732661,1779339037000,-1453.63662812,0.00014882,3]
[422732669,1779339038000,-413.32766839,0.00014891,3]
[422732668,1779339038000,-448.0,0.00014891,3]
[422732666,1779339038000,-418.98263072,0.00014891,3]
[422732667,1779339038000,-2093.68970089,0.00014891,3]
[422732665,1779339038000,-1158.67285135,0.00014891,3]
[422732688,1779339042000,-375.18789012,0.00014891,3]
[422732690,1779339042000,-213.38774491,0.00014899,2]
[422732689,1779339042000,-3912.10411984,0.00014891,3]
[422732691,1779339043000,-1133.45022366,0.00014899,2]
[422732788,1779339045000,-338.89006486,0.00014371,2]
[422732791,1779339046000,-1518.0955037,0.00014371,2]
[422732793,1779339046000,-778.8551037,0.00014899,2]
[422732792,1779339046000,-136.6916963,0.00014899,2]
[422732789,1779339046000,-577.09443144,0.00014371,2]
[422732790,1779339046000,-1199.92,0.00014371,2]
[422732913,1779339382000,2294.2,0.0002876,120]
[422732915,1779340084000,-2751.82,0.00039873,120]
[422732916,1779340084000,-2751.82,0.00039873,120]
[422732919,1779340084000,-2751.82,0.00039873,120]
[422732920,1779340084000,-2751.82,0.00039873,120]
[422732917,1779340084000,-2751.82,0.00039873,120]
[422732921,1779340084000,-2751.82,0.00039873,120]
[422732918,1779340084000,-2751.82,0.00039873,120]
[422732923,1779340084000,-2751.82,0.00039873,120]
[422732924,1779340084000,-2751.82,0.00039873,120]
[422732925,1779340084000,-2751.82,0.00039873,120]
[422732926,1779340084000,-2751.82,0.00039873,120]
[422732927,1779340084000,-2751.82,0.00039873,120]
[422732928,1779340084000,-2751.82,0.00039873,120]
[422732929,1779340084000,-2751.82,0.00039873,120]
[422732922,1779340084000,-2751.82,0.00039873,120]
[422732939,1779340085000,-500.0,0.00039873,120]
[422732942,1779340085000,-181.97280498,0.00039873,120]
[422732946,1779340085000,-7611.53,0.00039873,120]
[422732947,1779340085000,-7611.53,0.00039873,120]
[422732944,1779340085000,-7611.53,0.00039873,120]
[422732952,1779340085000,-500.0,0.00039873,120]
[422732938,1779340085000,-2751.83956812,0.00039873,120]
[422732943,1779340085000,-7611.53,0.00039873,120]
[422732937,1779340085000,-2751.82,0.00039873,120]
[422732940,1779340085000,-251.89137081,0.00039873,120]
[422732941,1779340085000,-1348.0,0.00039873,120]
[422732936,1779340085000,-2751.82,0.00039873,120]
[422732951,1779340085000,-500.0,0.00039873,120]
[422732934,1779340085000,-2751.82,0.00039873,120]
[422732930,1779340085000,-2751.82,0.00039873,120]
[422732931,1779340085000,-2751.82,0.00039873,120]
[422732933,1779340085000,-2751.82,0.00039873,120]
[422732932,1779340085000,-2751.82,0.00039873,120]
[422732935,1779340085000,-2751.82,0.00039873,120]
[422732954,1779340085000,-500.0,0.00039873,120]
[422732945,1779340085000,-7611.53,0.00039873,120]
[422732953,1779340085000,-500.0,0.00039873,120]
[422732972,1779340085000,-959.91,0.00039873,120]
[422732971,1779340085000,-587.89338134,0.00039873,120]
[422732950,1779340085000,-500.0,0.00039873,120]
[422732970,1779340085000,-500.0,0.00039873,120]
[422732967,1779340085000,-500.0,0.00039873,120]
[422732968,1779340085000,-500.0,0.00039873,120]
[422732966,1779340085000,-500.0,0.00039873,120]
[422732965,1779340085000,-500.0,0.00039873,120]
[422732960,1779340085000,-500.65679117,0.00039873,120]
[422732961,1779340085000,-500.0,0.00039873,120]
[422732969,1779340085000,-500.0,0.00039873,120]
[422732964,1779340085000,-500.0,0.00039873,120]
[422732963,1779340085000,-500.0,0.00039873,120]
[422732948,1779340085000,-7611.53,0.00039873,120]
[422732955,1779340085000,-500.0,0.00039873,120]
[422732956,1779340085000,-500.0,0.00039873,120]
[422732949,1779340085000,-500.0,0.00039873,120]
[422732957,1779340085000,-330.82,0.00039873,120]
[422732958,1779340085000,-500.0,0.00039873,120]
[422732962,1779340085000,-500.0,0.00039873,120]
[422732959,1779340085000,-500.0,0.00039873,120]
[422732988,1779340086000,-959.91,0.00039873,120]
[422732984,1779340086000,-959.91,0.00039873,120]
[422732986,1779340086000,-959.91,0.00039873,120]
[422732987,1779340086000,-959.91,0.00039873,120]
[422732982,1779340086000,-959.91,0.00039873,120]
[422732985,1779340086000,-959.91,0.00039873,120]
[422732983,1779340086000,-959.91,0.00039873,120]
[422732978,1779340086000,-959.91,0.00039873,120]
[422732980,1779340086000,-959.91,0.00039873,120]
[422732979,1779340086000,-959.91,0.00039873,120]
[422732977,1779340086000,-959.91,0.00039873,120]
[422732976,1779340086000,-959.91,0.00039873,120]
[422732973,1779340086000,-959.91,0.00039873,120]
[422732975,1779340086000,-959.91,0.00039873,120]
[422732989,1779340086000,-959.91,0.00039873,120]
[422732981,1779340086000,-959.91,0.00039873,120]
[422732991,1779340086000,-959.91,0.00039873,120]
[422732974,1779340086000,-959.91,0.00039873,120]
[422732990,1779340086000,-959.91,0.00039873,120]
[422732993,1779340086000,-959.91,0.00039873,120]
[422733006,1779340086000,-1253.8,0.00039873,120]
[422733007,1779340086000,-1253.8,0.00039873,120]
[422733005,1779340086000,-1253.8,0.00039873,120]
[422733003,1779340086000,-1253.8,0.00039873,120]
[422733004,1779340086000,-1253.8,0.00039873,120]
[422733002,1779340086000,-1253.8,0.00039873,120]
[422733001,1779340086000,-1253.8,0.00039873,120]
[422733008,1779340086000,-1253.8,0.00039873,120]
[422732998,1779340086000,-1253.8,0.00039873,120]
[422732999,1779340086000,-1253.8,0.00039873,120]
[422732996,1779340086000,-1253.8,0.00039873,120]
[422732997,1779340086000,-1253.8,0.00039873,120]
[422732994,1779340086000,-959.91,0.00039873,120]
[422732992,1779340086000,-959.91,0.00039873,120]
[422732995,1779340086000,-959.93989064,0.00039873,120]
[422733000,1779340086000,-1253.8,0.00039873,120]
[422733019,1779340087000,-1253.85827578,0.00039873,120]
[422733020,1779340087000,-1133.0,0.00039873,120]
[422733021,1779340087000,-4000.0,0.00039873,120]
[422733017,1779340087000,-1253.8,0.00039873,120]
[422733018,1779340087000,-1253.8,0.00039873,120]
[422733016,1779340087000,-1253.8,0.00039873,120]
[422733013,1779340087000,-1253.8,0.00039873,120]
[422733014,1779340087000,-1253.8,0.00039873,120]
[422733009,1779340087000,-1253.8,0.00039873,120]
[422733015,1779340087000,-1253.8,0.00039873,120]
[422733011,1779340087000,-1253.8,0.00039873,120]
[422733010,1779340087000,-1253.8,0.00039873,120]
[422733024,1779340087000,-500.0,0.00039873,120]
[422733012,1779340087000,-1253.8,0.00039873,120]
[422733022,1779340087000,-5000.0,0.00039873,120]
[422733023,1779340087000,-500.0,0.00039873,120]
[422733025,1779340087000,-500.0,0.00039873,120]
[422733038,1779340087000,-10000.0,0.00039873,120]
[422733039,1779340087000,-10000.0,0.00039873,120]
[422733037,1779340087000,-10000.0,0.00039873,120]
[422733035,1779340087000,-500.0,0.00039873,120]
[422733033,1779340087000,-500.0,0.00039873,120]
[422733032,1779340087000,-500.0,0.00039873,120]
[422733036,1779340087000,-10000.0,0.00039873,120]
[422733029,1779340087000,-500.0,0.00039873,120]
[422733030,1779340087000,-500.0,0.00039873,120]
[422733028,1779340087000,-500.0,0.00039873,120]
[422733031,1779340087000,-500.0,0.00039873,120]
[422733027,1779340087000,-10000.0,0.00039873,120]
[422733026,1779340087000,-500.0,0.00039873,120]
[422733034,1779340087000,-500.0,0.00039873,120]
[422733049,1779340088000,-1314.67,0.00039873,120]
[422733056,1779340088000,-1314.67,0.00039873,120]
[422733052,1779340088000,-1314.67,0.00039873,120]
[422733050,1779340088000,-1314.67,0.00039873,120]
[422733053,1779340088000,-1314.67,0.00039873,120]
[422733051,1779340088000,-1314.67,0.00039873,120]
[422733048,1779340088000,-1314.67,0.00039873,120]
[422733040,1779340088000,-10000.0,0.00039873,120]
[422733047,1779340088000,-1314.67,0.00039873,120]
[422733045,1779340088000,-1314.67,0.00039873,120]
[422733042,1779340088000,-10000.0,0.00039873,120]
[422733044,1779340088000,-1314.67,0.00039873,120]
[422733043,1779340088000,-32523.0,0.00039873,120]
[422733055,1779340088000,-1314.67,0.00039873,120]
[422733041,1779340088000,-10000.0,0.00039873,120]
[422733046,1779340088000,-1314.67,0.00039873,120]
[422733054,1779340088000,-1314.67,0.00039873,120]
[422733072,1779340088000,-46072.3,0.00039873,120]
[422733058,1779340088000,-1314.67,0.00039873,120]
[422733057,1779340088000,-1314.67,0.00039873,120]
[422733075,1779340088000,-218.82569579,0.00039873,120]
[422733074,1779340088000,-615.57673282,0.00039873,120]
[422733073,1779340088000,-1095.0,0.00039873,120]
[422733071,1779340088000,-70032.68479111,0.00039873,120]
[422733070,1779340088000,-489.49113706,0.00039873,120]
[422733067,1779340088000,-1314.82896475,0.00039873,120]
[422733065,1779340088000,-1314.67,0.00039873,120]
[422733069,1779340088000,-534.98987479,0.00039873,120]
[422733066,1779340088000,-1314.67,0.00039873,120]
[422733062,1779340088000,-1314.67,0.00039873,120]
[422733063,1779340088000,-1314.67,0.00039873,120]
[422733061,1779340088000,-1314.67,0.00039873,120]
[422733064,1779340088000,-1314.67,0.00039873,120]
[422733059,1779340088000,-1314.67,0.00039873,120]
[422733060,1779340088000,-1314.67,0.00039873,120]
[422733068,1779340088000,-500.0,0.00039873,120]
[422733084,1779340089000,-500.0,0.00039873,120]
[422733092,1779340089000,-500.0,0.00039873,120]
[422733090,1779340089000,-500.0,0.00039873,120]
[422733088,1779340089000,-500.0,0.00039873,120]
[422733089,1779340089000,-500.0,0.00039873,120]
[422733087,1779340089000,-500.0,0.00039873,120]
[422733086,1779340089000,-500.0,0.00039873,120]
[422733085,1779340089000,-500.0,0.00039873,120]
[422733091,1779340089000,-500.0,0.00039873,120]
[422733081,1779340089000,-500.0,0.00039873,120]
[422733083,1779340089000,-500.0,0.00039873,120]
[422733080,1779340089000,-500.0,0.00039873,120]
[422733079,1779340089000,-500.0,0.00039873,120]
[422733077,1779340089000,-559.11465042,0.00039873,120]
[422733078,1779340089000,-29994.60005,0.00039873,120]
[422733076,1779340089000,-500.0,0.00039873,120]
[422733082,1779340089000,-500.0,0.00039873,120]
[422733094,1779340089000,-500.0,0.00039873,120]
[422733108,1779340089000,-500.0,0.00039873,120]
[422733096,1779340089000,-500.0,0.00039873,120]
[422733093,1779340089000,-500.0,0.00039873,120]
[422733113,1779340089000,-500.0,0.00039873,120]
[422733107,1779340089000,-500.0,0.00039873,120]
[422733109,1779340089000,-500.0,0.00039873,120]
[422733110,1779340089000,-500.0,0.00039873,120]
[422733112,1779340089000,-500.0,0.00039873,120]
[422733105,1779340089000,-500.0,0.00039873,120]
[422733106,1779340089000,-500.0,0.00039873,120]
[422733111,1779340089000,-183.01602055,0.00039873,120]
[422733102,1779340089000,-500.0,0.00039873,120]
[422733101,1779340089000,-500.0,0.00039873,120]
[422733100,1779340089000,-509.77638913,0.00039873,120]
[422733099,1779340089000,-500.0,0.00039873,120]
[422733104,1779340089000,-500.0,0.00039873,120]
[422733098,1779340089000,-254.84,0.00039873,120]
[422733097,1779340089000,-500.0,0.00039873,120]
[422733095,1779340089000,-500.0,0.00039873,120]
[422733103,1779340089000,-500.0,0.00039873,120]
[422733131,1779340090000,-500.0,0.00039873,120]
[422733125,1779340090000,-500.0,0.00039873,120]
[422733130,1779340090000,-500.0,0.00039873,120]
[422733122,1779340090000,-500.0,0.00039873,120]
[422733133,1779340090000,-500.0,0.00039873,120]
[422733123,1779340090000,-500.0,0.00039873,120]
[422733118,1779340090000,-495.10946401,0.00039873,120]
[422733116,1779340090000,-500.0,0.00039873,120]
[422733119,1779340090000,-500.0,0.00039873,120]
[422733120,1779340090000,-460.0445,0.00039873,120]
[422733114,1779340090000,-500.0,0.00039873,120]
[422733117,1779340090000,-500.0,0.00039873,120]
[422733115,1779340090000,-500.0,0.00039873,120]
[422733134,1779340090000,-500.0,0.00039873,120]
[422733121,1779340090000,-491.05329693,0.00039873,120]
[422733126,1779340090000,-500.0,0.00039873,120]
[422733124,1779340090000,-500.0,0.00039873,120]
[422733127,1779340090000,-500.0,0.00039873,120]
[422733146,1779340090000,-500.0,0.00039873,120]
[422733147,1779340090000,-500.0,0.00039873,120]
[422733143,1779340090000,-500.0,0.00039873,120]
[422733145,1779340090000,-500.0,0.00039873,120]
[422733140,1779340090000,-500.0,0.00039873,120]
[422733144,1779340090000,-500.0,0.00039873,120]
[422733138,1779340090000,-368.04067565,0.00039873,120]
[422733142,1779340090000,-500.0,0.00039873,120]
[422733139,1779340090000,-500.0,0.00039873,120]
[422733135,1779340090000,-500.0,0.00039873,120]
[422733136,1779340090000,-500.0,0.00039873,120]
[422733137,1779340090000,-500.0,0.00039873,120]
[422733129,1779340090000,-500.0,0.00039873,120]
[422733132,1779340090000,-500.0,0.00039873,120]
[422733128,1779340090000,-500.0,0.00039873,120]
[422733141,1779340090000,-500.0,0.00039873,120]
[422733157,1779340091000,-500.0,0.00039873,120]
[422733163,1779340091000,-375.22677161,0.00039873,120]
[422733162,1779340091000,-171.75421063,0.00039873,120]
[422733158,1779340091000,-500.0,0.00039873,120]
[422733161,1779340091000,-240.41170883,0.00039873,120]
[422733159,1779340091000,-500.0,0.00039873,120]
[422733160,1779340091000,-256.36,0.00039873,120]
[422733156,1779340091000,-500.0,0.00039873,120]
[422733148,1779340091000,-500.0,0.00039873,120]
[422733154,1779340091000,-512.46873899,0.00039873,120]
[422733152,1779340091000,-500.0,0.00039873,120]
[422733153,1779340091000,-500.0,0.00039873,120]
[422733150,1779340091000,-500.0,0.00039873,120]
[422733151,1779340091000,-500.0,0.00039873,120]
[422733149,1779340091000,-588.94,0.00039873,120]
[422733165,1779340091000,-500.0,0.00039873,120]
[422733155,1779340091000,-500.0,0.00039873,120]
[422733169,1779340091000,-503.45311622,0.00039873,120]
[422733164,1779340091000,-500.0,0.00039873,120]
[422733167,1779340091000,-334.5007634,0.00039873,120]
[422733186,1779340091000,-592.48671063,0.00039873,120]
[422733184,1779340091000,-279.04808287,0.00039873,120]
[422733185,1779340091000,-502.04420341,0.00039873,120]
[422733181,1779340091000,-234.04268389,0.00039873,120]
[422733182,1779340091000,-574.49094325,0.00039873,120]
[422733180,1779340091000,-556.9325545,0.00039873,120]
[422733179,1779340091000,-500.0,0.00039873,120]
[422733176,1779340091000,-500.0,0.00039873,120]
[422733178,1779340091000,-216.72,0.00039873,120]
[422733166,1779340091000,-500.0,0.00039873,120]
[422733177,1779340091000,-500.0,0.00039873,120]
[422733171,1779340091000,-257.64847703,0.00039873,120]
[422733174,1779340091000,-500.0,0.00039873,120]
[422733170,1779340091000,-554.97042021,0.00039873,120]
[422733173,1779340091000,-500.0,0.00039873,120]
[422733172,1779340091000,-240.42577048,0.00039873,120]
[422733183,1779340091000,-5110.0,0.00039873,120]
[422733168,1779340091000,-500.0,0.00039873,120]
[422733175,1779340091000,-500.0,0.00039873,120]
[422733199,1779340092000,-447.22031753,0.00039873,120]
[422733200,1779340092000,-407.63166664,0.00039873,120]
[422733205,1779340092000,-500.0,0.00039873,120]
[422733202,1779340092000,-469.3503774,0.00039873,120]
[422733203,1779340092000,-552.75980507,0.00039873,120]
[422733198,1779340092000,-325.77933872,0.00039873,120]
[422733201,1779340092000,-233.9467533,0.00039873,120]
[422733196,1779340092000,-500.0,0.00039873,120]
[422733194,1779340092000,-233.39799359,0.00039873,120]
[422733192,1779340092000,-234.80582953,0.00039873,120]
[422733193,1779340092000,-495.52484996,0.00039873,120]
[422733195,1779340092000,-460.28777156,0.00039873,120]
[422733191,1779340092000,-233.14140619,0.00039873,120]
[422733189,1779340092000,-506.59707858,0.00039873,120]
[422733190,1779340092000,-299.71256668,0.00039873,120]
[422733187,1779340092000,-363.27044137,0.00039873,120]
[422733207,1779340092000,-500.0,0.00039873,120]
[422733197,1779340092000,-518.94215909,0.00039873,120]
[422733188,1779340092000,-500.0,0.00039873,120]
[422733204,1779340092000,-500.0,0.00039873,120]
[422733209,1779340092000,-500.0,0.00039873,120]
[422733206,1779340092000,-500.0,0.00039873,120]
[422733225,1779340092000,-489.27978447,0.00039873,120]
[422733224,1779340092000,-734.59,0.00039873,120]
[422733222,1779340092000,-734.59,0.00039873,120]
[422733223,1779340092000,-500.0,0.00039873,120]
[422733221,1779340092000,-734.59,0.00039873,120]
[422733219,1779340092000,-734.59,0.00039873,120]
[422733217,1779340092000,-734.59,0.00039873,120]
[422733220,1779340092000,-232.03342087,0.00039873,120]
[422733216,1779340092000,-734.59,0.00039873,120]
[422733218,1779340092000,-734.59,0.00039873,120]
[422733211,1779340092000,-315.0486826,0.00039873,120]
[422733210,1779340092000,-500.0,0.00039873,120]
[422733213,1779340092000,-435.28532218,0.00039873,120]
[422733208,1779340092000,-500.0,0.00039873,120]
[422733214,1779340092000,-734.59,0.00039873,120]
[422733215,1779340092000,-605.70230037,0.00039873,120]
[422733212,1779340092000,-313.43282528,0.00039873,120]
[422733237,1779340093000,-734.59,0.00039873,120]
[422733242,1779340093000,-734.59,0.00039873,120]
[422733243,1779340093000,-734.59,0.00039873,120]
[422733240,1779340093000,-734.59,0.00039873,120]
[422733239,1779340093000,-734.59,0.00039873,120]
[422733238,1779340093000,-734.59,0.00039873,120]
[422733236,1779340093000,-324.64033827,0.00039873,120]
[422733234,1779340093000,-181.61899403,0.00039873,120]
[422733241,1779340093000,-401.69627072,0.00039873,120]
[422733235,1779340093000,-734.59,0.00039873,120]
[422733233,1779340093000,-734.59,0.00039873,120]
[422733231,1779340093000,-323.98556437,0.00039873,120]
[422733230,1779340093000,-734.59,0.00039873,120]
[422733228,1779340093000,-734.59,0.00039873,120]
[422733229,1779340093000,-734.59,0.00039873,120]
[422733227,1779340093000,-734.59,0.00039873,120]
[422733232,1779340093000,-208.71164475,0.00039873,120]
[422733245,1779340093000,-734.59,0.00039873,120]
[422733226,1779340093000,-734.59,0.00039873,120]
[422733246,1779340093000,-500.0,0.00039873,120]
[422733263,1779340093000,-509.89465039,0.00039873,120]
[422733264,1779340093000,-500.0,0.00039873,120]
[422733261,1779340093000,-371.1517968,0.00039873,120]
[422733259,1779340093000,-300.56436137,0.00039873,120]
[422733262,1779340093000,-500.0,0.00039873,120]
[422733260,1779340093000,-396.95469957,0.00039873,120]
[422733258,1779340093000,-609.77024842,0.00039873,120]
[422733257,1779340093000,-500.0,0.00039873,120]
[422733256,1779340093000,-500.0,0.00039873,120]
[422733244,1779340093000,-734.59,0.00039873,120]
[422733254,1779340093000,-500.0,0.00039873,120]
[422733252,1779340093000,-500.0,0.00039873,120]
[422733253,1779340093000,-500.0,0.00039873,120]
[422733251,1779340093000,-500.0,0.00039873,120]
[422733250,1779340093000,-500.0,0.00039873,120]
[422733247,1779340093000,-734.7,0.00039873,120]
[422733249,1779340093000,-333.7927498,0.00039873,120]
[422733248,1779340093000,-636.6424289,0.00039873,120]
[422733255,1779340093000,-458.39907182,0.00039873,120]
[422733277,1779340094000,-500.0,0.00039873,120]
[422733274,1779340094000,-500.0,0.00039873,120]
[422733281,1779340094000,-500.0,0.00039873,120]
[422733278,1779340094000,-500.0,0.00039873,120]
[422733280,1779340094000,-500.0,0.00039873,120]
[422733275,1779340094000,-500.0,0.00039873,120]
[422733279,1779340094000,-500.0,0.00039873,120]
[422733276,1779340094000,-500.0,0.00039873,120]
[422733270,1779340094000,-500.0,0.00039873,120]
[422733273,1779340094000,-500.0,0.00039873,120]
[422733272,1779340094000,-466.77960255,0.00039873,120]
[422733269,1779340094000,-500.0,0.00039873,120]
[422733267,1779340094000,-500.0,0.00039873,120]
[422733268,1779340094000,-500.0,0.00039873,120]
[422733265,1779340094000,-500.0,0.00039873,120]
[422733266,1779340094000,-191.49431635,0.00039873,120]
[422733282,1779340094000,-500.0,0.00039873,120]
[422733271,1779340094000,-500.0,0.00039873,120]
[422733283,1779340094000,-500.0,0.00039873,120]
[422733285,1779340094000,-500.0,0.00039873,120]
[422733300,1779340094000,-667.15,0.00039873,120]
[422733303,1779340094000,-667.15,0.00039873,120]
[422733284,1779340094000,-500.0,0.00039873,120]
[422733302,1779340094000,-331.55773483,0.00039873,120]
[422733301,1779340094000,-377.12420521,0.00039873,120]
[422733299,1779340094000,-667.15,0.00039873,120]
[422733298,1779340094000,-667.15,0.00039873,120]
[422733296,1779340094000,-667.15,0.00039873,120]
[422733294,1779340094000,-204.36776893,0.00039873,120]
[422733297,1779340094000,-667.15,0.00039873,120]
[422733293,1779340094000,-508.18877199,0.00039873,120]
[422733292,1779340094000,-500.0,0.00039873,120]
[422733290,1779340094000,-321.16566455,0.00039873,120]
[422733291,1779340094000,-396.49096635,0.00039873,120]
[422733289,1779340094000,-205.25253809,0.00039873,120]
[422733288,1779340094000,-500.0,0.00039873,120]
[422733286,1779340094000,-500.0,0.00039873,120]
[422733287,1779340094000,-593.86108303,0.00039873,120]
[422733295,1779340094000,-667.15,0.00039873,120]
[422733312,1779340095000,-500.0,0.00039873,120]
[422733319,1779340095000,-500.0,0.00039873,120]
[422733316,1779340095000,-667.15,0.00039873,120]
[422733318,1779340095000,-610.09937592,0.00039873,120]
[422733317,1779340095000,-500.0,0.00039873,120]
[422733315,1779340095000,-500.0,0.00039873,120]
[422733314,1779340095000,-500.0,0.00039873,120]
[422733323,1779340095000,-667.15,0.00039873,120]
[422733311,1779340095000,-500.0,0.00039873,120]
[422733308,1779340095000,-667.15,0.00039873,120]
[422733309,1779340095000,-667.15,0.00039873,120]
[422733310,1779340095000,-667.15,0.00039873,120]
[422733307,1779340095000,-667.15,0.00039873,120]
[422733306,1779340095000,-667.15,0.00039873,120]
[422733304,1779340095000,-667.15,0.00039873,120]
[422733313,1779340095000,-667.15,0.00039873,120]
[422733322,1779340095000,-553.4513969,0.00039873,120]
[422733305,1779340095000,-667.15,0.00039873,120]
[422733320,1779340095000,-667.15,0.00039873,120]
[422733321,1779340095000,-479.98900581,0.00039873,120]
[422733340,1779340095000,-197.70986805,0.00039873,120]
[422733339,1779340095000,-509.92341506,0.00039873,120]
[422733336,1779340095000,-272.98405863,0.00039873,120]
[422733338,1779340095000,-500.0,0.00039873,120]
[422733335,1779340095000,-214.47998891,0.00039873,120]
[422733334,1779340095000,-252.99586229,0.00039873,120]
[422733332,1779340095000,-500.0,0.00039873,120]
[422733337,1779340095000,-152.83095581,0.00039873,120]
[422733330,1779340095000,-500.0,0.00039873,120]
[422733328,1779340095000,-500.0,0.00039873,120]
[422733331,1779340095000,-667.36,0.00039873,120]
[422733329,1779340095000,-667.15,0.00039873,120]
[422733327,1779340095000,-667.15,0.00039873,120]
[422733326,1779340095000,-667.15,0.00039873,120]
[422733324,1779340095000,-667.15,0.00039873,120]
[422733333,1779340095000,-172.71727385,0.00039873,120]
[422733325,1779340095000,-667.15,0.00039873,120]
[422733352,1779340096000,-500.0,0.00039873,120]
[422733353,1779340096000,-500.0,0.00039873,120]
[422733354,1779340096000,-500.0,0.00039873,120]
[422733355,1779340096000,-500.0,0.00039873,120]
[422733358,1779340096000,-500.0,0.00039873,120]
[422733351,1779340096000,-500.0,0.00039873,120]
[422733356,1779340096000,-500.17161827,0.00039873,120]
[422733348,1779340096000,-500.0,0.00039873,120]
[422733341,1779340096000,-500.0,0.00039873,120]
[422733349,1779340096000,-343.70049639,0.00039873,120]
[422733347,1779340096000,-500.0,0.00039873,120]
[422733346,1779340096000,-500.0,0.00039873,120]
[422733344,1779340096000,-304.58266887,0.00039873,120]
[422733345,1779340096000,-295.93507793,0.00039873,120]
[422733342,1779340096000,-500.0,0.00039873,120]
[422733357,1779340096000,-500.0,0.00039873,120]
[422733350,1779340096000,-226.58383584,0.00039873,120]
[422733360,1779340096000,-500.0,0.00039873,120]
[422733343,1779340096000,-500.0,0.00039873,120]
[422733361,1779340096000,-500.0,0.00039873,120]
[422733378,1779340096000,-173.21704908,0.00039873,120]
[422733377,1779340096000,-766.83,0.00039873,120]
[422733376,1779340096000,-500.0,0.00039873,120]
[422733375,1779340096000,-766.83,0.00039873,120]